Cogmind - Beta 11.1 @@@ ROGUE MODE // 2022.05.31 @ 18:46:02 Player: eldritch Result: Self-destructed Performance ------------- Evolutions (2) 1000 Regions Visited (5) 1000 Robots Destroyed (9) 45 Value Destroyed (180) 180 Prototype IDs (23) 460 Alien Tech Used (0) 0 Bonus (321) 321 TOTAL SCORE: 3006 Bonus ------- Follower Combat Kills 21 Aligned with FarCom 300 Cogmind --------- Core Integrity 521/550 Matter 459/500 Energy 100/100 System Corruption 0% Temperature Cool (0) Movement Walking (190) Ox1 Location -8/Materials Parts ------- > --- POWER (1) -------- (None) > --- PROPULSION (3) --- Armored Treads Aluminum Leg Aluminum Leg > --- UTILITY (4) ------ Medium Storage Unit High-capacity Matter Pod Improved Terrain Scanner > --- WEAPON (3) ------- Field Laser Assault Rifle Assault Rifle > --- INVENTORY (10) --- Light Ion Engine Nuclear Core Light Treads Light Treads Modified TNC Heavy EM Pulse Gun EM Shotgun EM Pulse Cannon EMP Blaster Improved Datajack Peak State ------------ > --- POWER ------------ (None) > --- PROPULSION ------- Armored Treads Aluminum Leg Aluminum Leg > --- UTILITY ---------- Medium Storage Unit High-capacity Matter Pod Improved Terrain Scanner > --- WEAPON ----------- Field Laser Assault Rifle Assault Rifle > --- INVENTORY -------- Light Ion Engine Nuclear Core Light Treads Light Treads Modified TNC Heavy EM Pulse Gun EM Shotgun EM Pulse Cannon EMP Blaster Improved Datajack [Rating: 17] Favorites ----------- Power Ion Engine Engine Ion Engine Propulsion Aluminum Leg Treads Armored Treads Leg Aluminum Leg Utility Small Storage Unit Device Improved Terrain Scanner Storage Small Storage Unit Weapon Assault Rifle Energy Gun Medium Laser Ballistic Gun Assault Rifle Build | -11 -10 -10 -10 -9 -8 ------- Run | Scr Mat Min Exi Min Mat Slots Evolved 4 | . . . . . 4 Power . | . . . . . . Propulsion 1 | . . . . . 1 Utility 2 | . . . . . 2 Weapon 1 | . . . . . 1 Parts Attached 10 | 1 . . 3 . 6 Power . | . . . . . . Engine . | . . . . . . Core . | . . . . . . Reactor . | . . . . . . Propulsion 3 | . . . . . 3 Treads 2 | . . . . . 2 Leg 1 | . . . . . 1 Wheel . | . . . . . . Hover . | . . . . . . Flight . | . . . . . . Utility 5 | 1 . . 3 . 1 Device 2 | 1 . . 1 . . Storage 3 | . . . 2 . 1 Processor . | . . . . . . Hackware . | . . . . . . Protection . | . . . . . . Artifact . | . . . . . . Weapon 2 | . . . . . 2 Energy Gun 2 | . . . . . 2 Energy Cannon . | . . . . . . Ballistic Gun . | . . . . . . Ballistic Cannon . | . . . . . . Launcher . | . . . . . . Special Weapon . | . . . . . . Impact Weapon . | . . . . . . Slashing Weapon . | . . . . . . Piercing Weapon . | . . . . . . Special Melee Weapon . | . . . . . . Unidentified Prototypes . | . . . . . . Parts Lost 1 | . . . . . 1 Power 1 | . . . . . 1 Propulsion . | . . . . . . Utility . | . . . . . . Weapon . | . . . . . . Highest Loss Streak 1 | . . . . . 1 To Critical Strikes . | . . . . . . Average Slot Usage (%) 94 | . 100 100 100 100 83 Engine 10 | . 14 14 14 14 4 Treads 3 | . . . . . 9 Leg 24 | . 28 28 28 28 18 Device 10 | . 14 14 7 14 9 Storage 16 | . 14 14 20 14 16 Energy Gun 3 | . . . . . 9 Ballistic Gun 24 | . 28 28 28 28 18 Naked Turns . | . . . . . . Heaviest Build 26 | 15 15 15 23 20 26 Greatest Support 20 | 20 20 20 20 20 20 Greatest Overweight (x) 1 | . . . 1 . 1 Average Overweight (x) . | . . . . . 1 Largest Inventory Capacity 10 | 8 8 8 10 10 10 Average Capacity 8 | 8 8 8 8 10 10 Most Carried 10 | 7 8 8 8 8 10 Average Carried 8 | 6 7 8 7 8 9 Final Capacity 10 | 8 8 8 10 10 10 Final Carried 10 | 7 8 8 8 8 10 Class Distribution -------------------- 58% | Mutant 41% | Skirmisher Dominant Class ---------------- Mutant | -10/Materials Mutant | -10/Mines Mutant | -10/Exiles Skirmisher | -9/Mines Skirmisher | -8/Materials Resources | -11 -10 -10 -10 -9 -8 ----------- Run | Scr Mat Min Exi Min Mat Matter Collected 676 | 324 . 40 100 72 140 Remotely . | . . . . . . Salvage Created 327 | 181 . . . . 146 Parts 18 | 14 . . . . 4 Haulers Intercepted . | . . . . . . Recyclers Shooed . | . . . . . . Parts Field Recycled . | . . . . . . Retrieved Matter . | . . . . . . Parts Self-Destructed . | . . . . . . Prevented . | . . . . . . Kills | -11 -10 -10 -10 -9 -8 ------- Run | Scr Mat Min Exi Min Mat Combat Hostiles Destroyed 3 | . . . . . 3 Guns 3 | . . . . . 3 Classes Destroyed 4 | 2 . . . . 2 Tunneler 5 | 5 . . . . . Recycler 1 | 1 . . . . . Grunt 2 | . . . . . 2 Sentry 1 | . . . . . 1 Best Kill Streak 2 | 2 . . . . 1 Combat Bots Only 1 | . . . . . 1 Max Kills in Single Turn 1 | 1 . . . . 1 Gunslinging . | . . . . . . Exploded . | . . . . . . Melee . | . . . . . . Uniques/NPCs Destroyed . | . . . . . . Combat | -11 -10 -10 -10 -9 -8 -------- Run | Scr Mat Min Exi Min Mat Damage Taken 300 | . . . . 6 294 Core 29 | . . . . . 29 Absorbed by Shields . | . . . . . . Core Remaining (%) 100 | 100 . . . 100 . Volleys Fired 37 | 19 3 . . . 15 Largest 3 | 2 2 . . . 3 Hottest 103 | 40 40 . . . 103 Shots Fired 89 | 38 6 . . . 45 Gun 89 | 38 6 . . . 45 Cannon . | . . . . . . Launcher . | . . . . . . Special . | . . . . . . Kinetic 74 | 38 6 . . . 30 Thermal 15 | . . . . . 15 Explosive . | . . . . . . Electromagnetic . | . . . . . . Robot Hit Streak 9 | 8 9 . . . 9 Robot Miss Streak 5 | 2 5 . . . 2 Penetration Max . | . . . . . . Secondary Targets . | . . . . . . Shots Hit Robots 59 | 25 1 . . . 33 Core Hits 18 | 7 1 . . . 10 Critical Kills 1 | 1 . . . . . Critical Parts Destroyed . | . . . . . . Critical Strikes 1 | 1 . . . . . Destroy 1 | 1 . . . . . Melee Attacks . | . . . . . . Impact . | . . . . . . Slashing . | . . . . . . Piercing . | . . . . . . Sneak Attacks . | . . . . . . Combat Hostiles . | . . . . . . Follow-up Attacks . | . . . . . . Damage Inflicted 767 | 310 12 . . . 445 Guns 767 | 310 12 . . . 445 Cannons . | . . . . . . Explosions . | . . . . . . Melee . | . . . . . . Ramming . | . . . . . . Kinetic 622 | 310 12 . . . 300 Thermal 145 | . . . . . 145 Explosive . | . . . . . . Electromagnetic . | . . . . . . Impact . | . . . . . . Slashing . | . . . . . . Piercing . | . . . . . . Highest Corruption . | . . . . . . Average Corruption . | . . . . . . Corruption Purged . | . . . . . . Corruption Blocked . | . . . . . . Overload Shots . | . . . . . . Overflow Damage . | . . . . . . Projectiles . | . . . . . . Explosions . | . . . . . . Melee . | . . . . . . Knockbacks . | . . . . . . Impact . | . . . . . . Kinetic . | . . . . . . Secondary . | . . . . . . Self-Inflicted Damage . | . . . . . . Shots . | . . . . . . Rammed . | . . . . . . Targets Rammed . | . . . . . . Kicked . | . . . . . . Crushed . | . . . . . . Highest Temperature 72 | 6 . . . . 72 Average Temperature 22 | 6 . . . . 23 Received Heat Transfer 153 | . . . . . 153 Siege Activations . | . . . . . . Robots Corrupted . | . . . . . . Combat Hostiles . | . . . . . . Parts Fried . | . . . . . . Impact Corruptions . | . . . . . . Robots Melted . | . . . . . . Combat Hostiles . | . . . . . . Parts Melted 1 | . . . . . 1 Heat Transferred 407 | . . . . . 407 Parts Sabotaged . | . . . . . . Parts Stolen . | . . . . . . Parts Stripped . | . . . . . . Power Chain Reactions . | . . . . . . Missiles Intercepted . | . . . . . . Alert | -11 -10 -10 -10 -9 -8 ------- Run | Scr Mat Min Exi Min Mat Peak Influence 87 | 30 34 13 . 81 87 Initial 31 | . 19 13 . . 31 Average 29 | 18 24 13 . 10 47 Maximum Alert Level . | . . . . . . Low Security (%) 100 | 100 100 100 . 100 100 Level 1 . | . . . . . . Level 2 . | . . . . . . Level 3 . | . . . . . . Level 4 . | . . . . . . Level 5 . | . . . . . . High Security . | . . . . . . Max Security . | . . . . . . Squads Dispatched 2 | . 1 . . . 1 Investigation . | . . . . . . Extermination . | . . . . . . Reinforcement 2 | . 1 . . . 1 Assault . | . . . . . . Garrison . | . . . . . . Intercept . | . . . . . . Searches Triggered . | . . . . . . Construction Impeded . | . . . . . . Haulers Reinforced . | . . . . . . Active Scanning Responses . | . . . . . . Cargo Convoy Interrupts . | . . . . . . Stealth | -11 -10 -10 -10 -9 -8 --------- Run | Scr Mat Min Exi Min Mat Distress Signals 1 | . . . . . 1 Communications Jammed . | . . . . . . Distress Signals . | . . . . . . Times Spotted 13 | . 1 . . 3 9 Peak Tracking Total 4 | . 1 . . 3 4 Tactical Retreats 1 | . . . . . 1 Traps | -11 -10 -10 -10 -9 -8 ------- Run | Scr Mat Min Exi Min Mat Traps Triggered . | . . . . . . Indirectly . | . . . . . . Trap Hack Attempts . | . . . . . . Triggered . | . . . . . . Disarmed . | . . . . . . Reprogrammed . | . . . . . . Reused . | . . . . . . Traps Extracted . | . . . . . . Installed . | . . . . . . Triggered . | . . . . . . Machines | -11 -10 -10 -10 -9 -8 ---------- Run | Scr Mat Min Exi Min Mat Machines Disabled . | . . . . . . Max in Single Turn . | . . . . . . Machines Sabotaged . | . . . . . . Garrisons Compromised . | . . . . . . Overloaded Fab Kills . | . . . . . . Hacking | -11 -10 -10 -10 -9 -8 --------- Run | Scr Mat Min Exi Min Mat Machines Accessed 4 | . . . 4 . . Terminals . | . . . . . . Fabricators . | . . . . . . Repair Stations . | . . . . . . Recycling Units . | . . . . . . Scanalyzers . | . . . . . . Garrison Access . | . . . . . . Total Hacks 7 | . . . 7 . . Successful 7 | . . . 7 . . Failed . | . . . . . . Catastrophic . | . . . . . . Database Lockouts . | . . . . . . Manual 1 | . . . 1 . . Terminals . | . . . . . . Fabricators . | . . . . . . Repair Stations . | . . . . . . Recycling Units . | . . . . . . Scanalyzers . | . . . . . . Garrison Access . | . . . . . . Terminal Hacks 7 | . . . 7 . . Record 6 | . . . 6 . . EX-Prototype ID Bank 1 | . . . 1 . . Fabricator Hacks . | . . . . . . Repair Station Hacks . | . . . . . . Recycling Unit Hacks . | . . . . . . Scanalyzer . | . . . . . . Garrison Access Hacks . | . . . . . . Unauthorized Hacks . | . . . . . . Terminals . | . . . . . . Fabricators . | . . . . . . Repair Stations . | . . . . . . Recycling Units . | . . . . . . Scanalyzers . | . . . . . . Garrison Access . | . . . . . . Data Cores Recovered . | . . . . . . Used . | . . . . . . Hacking Detections . | . . . . . . Full Trace Events . | . . . . . . Feedback Events . | . . . . . . Feedback Blocked . | . . . . . . Robot Schematics Acquired . | . . . . . . Robots Built . | . . . . . . Authchips . | . . . . . . Time . | . . . . . . Total Robot Build Rating . | . . . . . . Part Schematics Acquired . | . . . . . . Parts Built . | . . . . . . Authchips . | . . . . . . Time . | . . . . . . Total Part Build Rating . | . . . . . . Parts Repaired . | . . . . . . Time . | . . . . . . Parts Recycled . | . . . . . . Recycled Matter . | . . . . . . Retrieved Matter . | . . . . . . Retrieved Components . | . . . . . . Parts Scanalyzed . | . . . . . . Part Schematics Acquired . | . . . . . . Parts Damaged . | . . . . . . Bothacking | -11 -10 -10 -10 -9 -8 ------------ Run | Scr Mat Min Exi Min Mat Used RIF Installer . | . . . . . . Robots Hacked . | . . . . . . Non-combat . | . . . . . . Combat . | . . . . . . Robot Hacks Applied . | . . . . . . Relay Couplers Released . | . . . . . . Fabnet Peak Effective % . | . . . . . . Robots Rewired . | . . . . . . Allies Hacked . | . . . . . . Hacks Repelled . | . . . . . . Allies | -11 -10 -10 -10 -9 -8 -------- Run | Scr Mat Min Exi Min Mat Total Allies 3 | . . 3 . . . Largest Group 3 | . . 3 3 3 1 Highest-Rated Group 40 | . . 40 40 40 16 Highest-Rated Ally 16 | . . 16 16 16 16 Total Orders 1 | . . . . 1 . STAY 1 | . . . . 1 . Ally Attacks 13 | . . . . 7 6 Total Damage 158 | . . . . 83 75 Kills 3 | . . . . 3 . Allies Corrupted . | . . . . . . Allies Melted . | . . . . . . Intel | -11 -10 -10 -10 -9 -8 ------- Run | Scr Mat Min Exi Min Mat Robot Analysis Total . | . . . . . . Derelict Logs Recovered . | . . . . . . Drone Launches . | . . . . . . Drone Recoveries . | . . . . . . Exploration | -11 -10 -10 -10 -9 -8 ------------- Run | Scr Mat Min Exi Min Mat Turns Passed 1477 | 229 96 129 429 137 457 Spaces Moved 927 | 117 70 104 344 110 182 Core . | . . . . . . Treads . | . . . . . . Legs 927 | 117 70 104 344 110 182 Wheels . | . . . . . . Hover . | . . . . . . Flight . | . . . . . . Fastest Speed 120 | 120 120 120 120 120 190 Average Speed 134 | 120 120 120 122 120 190 Slowest Speed 190 | 120 120 120 190 120 190 Overloaded Moves . | . . . . . . Propulsion Burnouts . | . . . . . . Robots Hopped . | . . . . . . Cave-ins Triggered . | . . . . . . Exploration Rate (%) 27 | 6 27 16 71 30 13 Regions Visited 5 Branch Regions 3 Pre-discovered Areas 1 | . . 1 . . . Known Exits Taken . | . . . . . . Unknown Exits Taken 5 | 1 1 1 1 1 . Scrap Searched 2 | . . 1 . 1 . Spaces Dug . | . . . . . . Terrain Destroyed . | . . . . . . Melee . | . . . . . . Projectile . | . . . . . . AOE . | . . . . . . Terrain Rammed . | . . . . . . Walls Destroyed . | . . . . . . Machines Disabled . | . . . . . . Actions | -11 -10 -10 -10 -9 -8 --------- Run | Scr Mat Min Exi Min Mat Total 1077 | 167 77 108 351 115 259 Wait 93 | 30 . 5 2 6 50 Move 922 | 116 69 103 343 109 182 Hop . | . . . . . . Pick Up 9 | 1 3 . 1 . 4 Fast Attach 1 | 1 . . . . . Attach 4 | . . . 1 . 3 Detach . | . . . . . . Swap 5 | . . . 2 . 3 Drop 6 | . 2 . 2 . 2 Fire 37 | 19 3 . . . 15 Melee . | . . . . . . Ram . | . . . . . . Kick . | . . . . . . Crush . | . . . . . . Escape Stasis . | . . . . . . Rewire . | . . . . . . Trap . | . . . . . . Miscellaneous . | . . . . . . Route ------- -11/Scrapyard -10/Materials -10/Mines (discovered 3 exits: [*Mat x2] / *Exi) -10/Exiles -9/Mines -8/Materials History --------- Turn | Location | Event 1 | -11/Scrapyard | Discovered new exit (range 3) 230 | -11/Scrapyard | Entered Materials 285 | -10/Materials | Discovered new exit (range 16) 313 | -10/Materials | Build established: Mutant 326 | -10/Materials | Entered Mines 349 | -10/Mines | Assisted by bots powering up and referring to "LRC-V3" 382 | -10/Mines | Deemed a non-threat by the Exiles lab entrance 382 | -10/Mines | Discovered new exit (range 5) 407 | -10/Mines | Learned location of Storage (-8) 409 | -10/Mines | Discovered new exit (range 5) 426 | -10/Mines | Discovered new exit (range 15) 455 | -10/Mines | Entered Exiles 455 | -10/Exiles | Accompanied by 3 allies 484 | -10/Exiles | Met 8R-AWN 505 | -10/Exiles | Met EX-HEX 539 | -10/Exiles | Met EX-BIN 561 | -10/Exiles | Aligned with FarCom system 562 | -10/Exiles | Given EX-Vault access code 610 | -10/Exiles | Opened EX-Vault 618 | -10/Exiles | Found Modified TNC 642 | -10/Exiles | Warned to stay clear of 0b10 Research branches 678 | -10/Exiles | Met EX-DEC 868 | -10/Exiles | Discovered new exit (range 14) 884 | -10/Exiles | Left Exiles lab with Modified TNC 884 | -10/Exiles | Entered Mines 884 | -9/Mines | Accompanied by 3 allies 996 | -9/Mines | Discovered new exit (range 11) 1021 | -9/Mines | Entered Materials 1021 | -8/Materials | Accompanied by 1 ally 1021 | -8/Materials | Evolved 4 slots: Propulsion x1, Utility x2, Weapon x1 1180 | -8/Materials | Build established: Skirmisher 1478 | -8/Materials | Self-destructed Last Messages --------------- 01258_ R-06 Scavenger collects Aluminum Leg. 01258_ R-06 Scavenger suffers critical hit (Burn). 01259_ Destroyed Aluminum Leg. 01261_ K-01 Serf collects debris. 01262_ Ion Engine destroyed. 01265_ K-01 Serf collects debris. 01266_ Lgt. Nuclear Core melted. 01266_ G-47 Trooper destroyed. 01268_ K-01 Serf collects debris. 01269_ Acquired 50 matter. 01273_ K-01 Serf collects debris. 01300_ Acquired 48 matter. 01342_ Dropped Med. Laser. 01357_ R-06 Scavenger collects Med. Laser. 01394_ W-25 Informer sends out distress signal. 01418_ R-06 Scavenger destroyed. 01457_ Electrolysis Chamber disabled. 01459_ Y-45 Defender destroyed. 01462_ K-01 Serf collects debris. 01476_ R-06 Scavenger collects Beam Rifle. Map ----- +----------------------------------------------------+ | ????????????????# """ # #??????????#??????????? | | ????????????????# """ + ##?#???????? ?????????? | | ??????????????#?# """ # #?????????????????????? | | ???#???????#????# # ##????##?##???????#???? | | ????????????????# # ########???#???????#??? | | ????????????????######## # #??????????????? | | ????????????????#??#???# # #?#?????##??#??? | | ????????????????#??????# # ##??????##?????? | | ???????????????????????# + #??#??#????#???? | | ???????????????##?#????# # [ #?##???????????? | | ????????????????##?????# # ##???##???#????? | | ????????????????#T"???## #####+##??????????????? | | ?????????######## "#### #??# #???#?##????????? | | ?????? gg ##?# #??? #????????? | | ?????? #### #??? #????????? | | ?????? g % ## ##????#??? | | ???????############+### ## ##???????? | | ??????????????????? ??#""" """ # #?????#??? | | ???????????????????? ?#"T """ #????#???? | | ????????????????? ? ??#""" """ ########????????? | | ??????????????????????# /#????#??????????? | | ??????????????????? ??# = #???????????????? | | ???????????????????? ?# r #######???????????????? | | ?????????????????????## ##??##????????????????? | | ??????????????????"?"?###/####??????##?#?#?#?????? | | ????????????? ?????"??# @u #?######????????????? | | ???????????????"""??? #""" w ###!!!!##???##??????? | | ??????????????????????#""" ##! !#?#?????????? | | ????????????+?????????#""" ##! !#????#??????? | | ??????????????????????# ## ##########??? | | ?????????????????? ???#""" # | | ????????????????????? #""" r | | ??????????????????????#""" r# | | ????????????#???#?#???# !# #######+### ##? | | ??????????????#???????#""" [ # #???????????????? | | ??????????????????????#"" k# #?? ??????#?????? | | ??????????????????????#""" # ##??? ??????????? | | ????????????????????#?# # #??? ?? ????????? | | ??????????????????????######## #??? ????#??????? | | ????????????????? ???????????# #?#?????????????? | | ????????????? ????????? ?????# #???????????????? | | ?????????????????????? ?? ???# #???????????????? | | ???????????????#??????????? ?# ##? ???????????? | | ?????????????????????????? ??# #??? ???????????? | | ?????????????????????????????# #???? ??????????? | | ????????????????????#??????#?# ##??????????????? | | ????????????????????????????## #???????????????? | | ??????????????????? ?????? ??# #???????????????? | | ?????????????????????????????# #???????????????? | | ???????????????????????????#?#[ #???????????????? | +----------------------------------------------------+ Best States ------------- Heat Dissipation 31 Energy Generation 10 Energy Capacity 250 Matter Stores 493 Matter Capacity 500 Sight Range 16 Terrain Scan Range 16 Terrain Scan Density 10 Evasion (%) 55 Recoil Reduction 1 Item Schematics ----------------- None Robot Schematics ------------------ None Fabricated ------------ Nothing Alien Tech Used ----------------- None Achievements -------------- None Challenges ------------ None Game ------ Seed PoweredIonProtomatter Manual? 0 Play Time 00:13:18 Cumulative 246.0 hours Start 2022.05.31 @ 18:35:17 End 2022.05.31 @ 18:46:02 Sessions 1 Manual Loads 0 Difficulty Rogue Special Mode None Game No. 558 Rogue 558 Adventurer 0 Explorer 0 Win Type - Total 5 Types 4/0/0/1/0/0/0/0/0 Lore% 58 Gallery% 61 Achievement% 56 Wizard Run 0 Options --------- ASCII 0 Keyboard 0 Movement Numpad Keybinds 0 Fullscreen 1 Font 16/SmallcapsGlow Map View 75x55 Tactical HUD 1 Map Filters NONE Filters NONE Steam 1 RUN: c429642a-f244-4d07-8846-9214185ed70b